bitfinex/quotes_SOLUSD_20240920
["timestamp","ask_amount","ask_price","bid_price","bid_amount"]
[1726831357356,6.86428,151.21,151.2,0.36666223]
[1726831357860,30.766654,151.21,151.2,0.36666223]
[1726831361778,6.73879,151.21,151.2,0.36666223]
[1726831362961,30.766654,151.21,151.2,0.36666223]
[1726831365492,24.153354,151.2,151.15,0.32728]
[1726831365792,6.6155,151.16,151.15,0.32728]
[1726831366359,30.768854,151.16,151.15,0.32728]
[1726831366761,50.768854,151.16,151.15,0.32728]
[1726831371488,30.768854,151.16,151.15,0.32728]
[1726831384881,30.392384,151.16,151.15,0.32728]
[1726831385092,22.3952,151.23,151.15,0.32728]
[1726831385401,16.533,151.22,151.15,0.32728]
[1726831385778,6.615,151.17,151.15,0.32728]
[1726831386194,16.533,151.22,151.15,0.32728]
[1726831386195,6.6147,151.18,151.15,0.32728]
[1726831391079,6.6143,151.19,151.15,0.32728]
[1726831392195,6.6138,151.2,151.15,0.32728]
[1726831392507,6.6133,151.21,151.16,15.9362]
[1726831392701,6.6132,151.22,151.16,15.9362]
[1726831393012,6.6134,151.21,151.16,15.9362]
[1726831393791,6.6121,151.24,151.16,15.9362]
[1726831394380,6.6116,151.25,151.16,15.9362]
[1726831394587,6.6121,151.24,151.16,15.9362]
[1726831395787,0.12549,151.24,151.16,15.9362]
[1726831396493,6.613,151.22,151.16,15.9362]
[1726831400088,6.6134,151.21,151.16,15.9362]
[1726831403587,0.12549,151.22,151.16,15.9362]
[1726831403903,0.12549,151.21,151.16,15.9362]
[1726831404106,6.6142,151.19,151.16,15.9362]
[1726831407313,6.615,151.17,151.16,15.9362]
[1726831407491,0.12549,151.19,151.16,15.9362]
[1726831408313,6.615,151.18,151.16,15.9362]
[1726831417414,6.6155,151.16,151.15,0.32728]
[1726831417734,6.86648,151.16,151.15,0.32728]
[1726831423114,6.99197,151.16,151.15,0.32728]
[1726831424350,20.37647,151.16,151.11,0.3613118]
[1726831424552,6.86818,151.12,151.11,0.3613118]
[1726831424854,6.99367,151.12,151.11,0.3613118]
[1726831427931,50.770554,151.12,151.11,0.3613118]
[1726831428640,6.6194,151.07,151.06,0.32728]
[1726831429152,6.99587,151.07,151.06,0.32728]
[1726831431263,30.772754,151.07,151.06,0.32728]
[1726831431763,50.772754,151.07,151.06,0.32728]
[1726831434043,6.99767,151.03,151.02,0.3613118]
[1726831434356,50.774554,151.03,151.02,0.3613118]
[1726831434938,50.774554,151.03,150.97,0.32728]
[1726831434939,6.6233,150.98,150.97,0.32728]
[1726831436059,6.6229,150.99,150.97,0.32728]
[1726831436771,6.6229,150.99,150.97,0.3299477]
[1726831441267,0.25098,151.02,150.97,0.3299477]
[1726831441268,6.6217,151.02,150.97,0.3299477]
[1726831441639,6.6213,151.03,150.97,0.3299477]
[1726831441844,23.2527884,151.1,150.98,14.7906473]
[1726831442189,23.2527884,151.1,150.98,13.4662044]
[1726831443470,6.6205,151.05,150.98,13.4662044]
[1726831444173,6.6205,151.05,150.98,6.6377]
[1726831446668,40.701254,151.08,150.98,6.6377]
[1726831447363,6.6219,151.02,150.98,6.6377]
[1726831451357,6.6213,151.03,150.98,6.6377]
[1726831451758,6.6209,151.04,150.98,6.6377]
[1726831452684,16.5471,151.09,151.0,16.3409]
[1726831453179,6.6203,151.05,151.0,16.3409]
[1726831453581,16.5471,151.09,151.0,16.3409]
[1726831453766,6.622,151.01,151.0,16.3409]
[1726831453966,6.622,151.01,150.97,0.3299477]
[1726831454400,6.6217,151.02,150.97,0.3299477]
[1726831455259,6.6213,151.03,150.97,0.3299477]
[1726831456587,6.6208,151.04,150.97,0.3299477]
[1726831458494,16.5479,151.08,150.98,7.42931371]
[1726831458675,6.7073884,151.1,150.98,7.42931371]
[1726831458676,0.0449884,151.1,150.99,16.38181883]
[1726831458988,6.6195,151.07,150.99,15.0576]
[1726831460673,6.6199,151.06,150.99,15.0576]
[1726831461092,6.6203,151.05,150.99,15.0576]
[1726831461867,6.6201,151.06,150.99,15.0576]
[1726831463889,6.6201,151.06,151.0,13.48475495]
[1726831464277,6.6196,151.07,151.0,13.48475495]
[1726831464465,0.25098,151.08,151.0,13.48475495]
[1726831464671,0.25098,151.08,151.01,1.3241297]
[1726831464892,0.25098,151.08,151.02,1.32414608]
[1726831465081,0.25098,151.08,151.0,13.48475495]
[1726831465283,6.6197,151.07,151.0,13.48475495]
[1726831465690,6.6199,151.06,151.0,13.48475495]
[1726831470101,0.0449884,151.1,151.02,13.48475495]
[1726831470297,6.6188,151.09,151.02,13.48475495]
[1726831471175,0.0449884,151.1,151.02,13.48475495]
[1726831471382,0.0449884,151.1,151.01,15.0441]
[1726831471796,0.12549,151.09,151.01,15.0441]
[1726831472097,6.6203,151.05,151.01,15.0441]
[1726831472996,6.6199,151.06,151.01,15.0441]
[1726831474209,6.6194,151.07,151.01,28.52885495]
[1726831474984,6.6199,151.06,151.01,28.52885495]
[1726831475392,6.6199,151.06,151.01,15.0441]
[1726831477305,6.6204,151.05,151.01,15.0441]
[1726831478798,6.62,151.06,151.01,15.0441]
[1726831482202,6.6203,151.05,151.01,15.0441]
[1726831482401,6.6212,151.03,151.01,15.0441]
[1726831482585,6.6209,151.04,151.01,15.0441]
[1726831483194,6.6212,151.03,151.01,15.0441]
[1726831483391,6.6209,151.04,151.01,15.0441]
[1726831490813,16.5477,151.08,151.01,15.0441]
[1726831491189,16.5477,151.08,151.01,16.36827479]
[1726831491398,6.6201,151.06,151.02,1.32417473]
[1726831491597,6.6201,151.06,151.01,15.0441]
[1726831492802,6.6203,151.05,151.01,15.0441]
[1726831494332,0.37647,151.07,151.01,15.0441]
[1726831495405,6.6216,151.02,151.01,15.0441]
[1726831496318,6.6213,151.03,151.01,15.0441]
[1726831497215,6.6213,151.03,151.01,15.0852147]
[1726831498414,6.6209,151.04,151.01,15.0852147]
[1726831498721,6.6204,151.05,151.01,15.0852147]
[1726831499017,20.25098,151.08,151.01,15.0852147]
[1726831499220,0.12549,151.07,151.01,15.0852147]
[1726831499514,6.6207,151.04,151.01,15.0852147]
[1726831499905,0.12549,151.07,151.01,15.0852147]
[1726831499906,6.6212,151.03,151.01,15.0852147]
[1726831500410,6.621,151.04,151.01,15.0852147]
[1726831500609,0.25098,151.06,151.01,15.0852147]
[1726831500816,6.6216,151.02,151.01,0.0411147]
[1726831503018,6.74709,151.02,151.01,0.0411147]
[1726831503718,6.99807,151.02,151.01,0.0411147]
[1726831504028,26.99807,151.02,151.01,0.0411147]
[1726831504202,50.774954,151.02,151.01,0.0411147]
[1726831505196,6.6238,150.97,150.96,0.3284909]
[1726831506330,6.87478,150.97,150.96,0.3284909]
[1726831506619,7.00027,150.97,150.96,0.3284909]
[1726831510424,50.777154,150.97,150.96,0.3284909]
[1726831510813,6.75099,150.93,150.92,0.3625227]
[1726831513534,6.6255,150.93,150.92,0.3625227]
[1726831513717,0.12549,150.95,150.92,0.3625227]
[1726831513924,20.0,150.98,150.92,0.3625227]
[1726831513925,6.6243,150.96,150.92,0.3625227]
[1726831515117,16.5568,151.0,150.92,0.3625227]
[1726831515416,16.559,150.98,150.92,0.3625227]
[1726831515616,24.153354,150.97,150.92,0.3625227]
[1726831515817,6.6252,150.94,150.92,0.3625227]
[1726831516048,24.153354,150.97,150.92,0.3625227]
[1726831516049,6.6255,150.93,150.92,0.3625227]
[1726831524726,30.778854,150.93,150.92,0.3625227]
[1726831525441,7.00197,150.93,150.92,0.3625227]
[1726831527929,32.2265,151.01,150.92,0.3625227]
[1726831528129,6.6242,150.97,150.92,0.3625227]
[1726831528331,32.2265,151.01,150.92,0.3625227]
[1726831528332,6.6234,150.98,150.92,1.68761044]
[1726831528955,6.6234,150.98,150.92,0.3625227]
[1726831530958,6.6239,150.97,150.92,0.3625227]
[1726831531758,16.80898,150.99,150.92,0.3625227]
[1726831531949,0.25098,150.97,150.92,0.3625227]
[1726831532282,6.6254,150.94,150.92,0.3625227]
[1726831533067,6.6255,150.93,150.92,0.3625227]
[1726831533875,7.00197,150.93,150.92,0.3625227]
[1726831536345,30.778854,150.93,150.92,0.3625227]
[1726831537460,7.00197,150.93,150.92,0.3625227]
[1726831544262,6.6255,150.93,150.92,0.3625227]
[1726831544461,6.6253,150.94,150.92,0.3625227]
[1726831547464,6.6255,150.93,150.92,0.3625227]
[1726831547878,6.75099,150.93,150.92,0.3625227]
[1726831548076,7.00197,150.93,150.92,0.3625227]
[1726831549078,30.778854,150.93,150.92,0.3625227]
[1726831550274,50.778854,150.93,150.92,0.3625227]
[1726831551182,6.6277,150.88,150.87,0.3284909]
[1726831555186,7.00417,150.88,150.87,0.3284909]
[1726831555863,30.781054,150.88,150.87,0.3284909]
[1726831556575,6.6269,150.9,150.87,0.3284909]
[1726831556884,6.6264,150.91,150.87,0.3284909]
[1726831557384,16.5632,150.94,150.87,0.3284909]
[1726831557385,6.627,150.9,150.87,0.3284909]
[1726831559894,6.6276,150.89,150.87,0.3284909]
[1726831560193,6.6274,150.89,150.87,0.3284909]
[1726831560484,0.12549,150.92,150.87,0.3284909]
[1726831560780,6.6277,150.88,150.87,0.3284909]
[1726831560963,6.6274,150.89,150.87,0.3284909]
[1726831561384,6.627,150.9,150.87,0.3284909]
[1726831561591,20.0,150.94,150.87,0.3284909]
[1726831561966,6.6264,150.91,150.87,0.3284909]
[1726831564471,6.6261,150.92,150.87,0.3284909]
[1726831564786,20.0,150.97,150.87,0.3284909]
[1726831565286,6.6252,150.94,150.87,0.3284909]
[1726831565597,6.6256,150.93,150.87,0.3284909]
[1726831565970,6.6245,150.96,150.88,16.87627425]
[1726831566289,6.6239,150.97,150.88,16.87627425]
[1726831566486,22.6492,151.01,150.88,15.551]
[1726831566677,16.5558,151.01,150.88,15.551]
[1726831566868,6.625,150.95,150.88,15.551]
[1726831568193,6.6244,150.96,150.88,15.551]
[1726831568379,6.6244,150.96,150.89,1.32509861]
[1726831568585,6.6244,150.96,150.88,15.551]
[1726831568995,6.6227,151.0,150.9,6.1299]
[1726831569169,20.0,151.02,150.91,17.22252843]
[1726831569370,0.2552689,151.03,150.92,23.776884]
[1726831569577,0.2552689,151.03,150.93,15.8976]
[1726831570291,6.6228,151.0,150.93,15.8976]
[1726831570474,6.6236,150.98,150.93,15.8976]
[1726831573075,6.6242,150.96,150.93,15.8976]
[1726831573593,6.6239,150.97,150.93,15.8976]
[1726831574181,6.6247,150.95,150.93,15.8976]
[1726831575391,0.25098,150.99,150.93,15.8976]
[1726831575392,6.6251,150.94,150.93,15.8976]
[1726831576586,6.6257,150.93,150.9,6.1299]
[1726831577916,0.25098,150.99,150.9,6.1299]
[1726831578194,6.6261,150.92,150.89,16.4887]
[1726831578499,6.6257,150.93,150.89,16.4887]
[1726831580302,6.75069,150.94,150.89,16.4887]
[1726831581205,6.6256,150.93,150.89,16.4887]
[1726831582283,6.75069,150.94,150.89,16.4887]
[1726831582487,6.6252,150.94,150.89,16.4887]
[1726831583911,6.6256,150.93,150.89,16.4887]
[1726831584791,6.626,150.92,150.89,16.4887]
[1726831584996,6.6255,150.93,150.89,16.4887]
[1726831585181,6.6254,150.94,150.89,16.4887]
[1726831589216,0.12549,150.95,150.89,16.4887]
[1726831590615,6.6258,150.93,150.89,16.4887]
[1726831592700,6.6257,150.93,150.89,16.4887]
[1726831592903,6.6265,150.91,150.89,16.4887]
[1726831593399,6.6269,150.9,150.89,16.4887]
[1726831595120,6.6273,150.89,150.87,0.3284909]
[1726831596220,7.00417,150.88,150.87,0.3284909]
[1726831596529,30.781054,150.88,150.87,0.3284909]
[1726831598319,7.00417,150.88,150.87,0.3284909]
[1726831599639,30.781054,150.88,150.87,0.3284909]
[1726831603342,30.781054,150.88,150.87,0.2845789]
[1726831609223,50.781054,150.88,150.87,0.2845789]
[1726831612570,50.404584,150.88,150.87,0.2845789]
[1726831612855,26.6277,150.88,150.87,0.2845789]
[1726831613723,26.87868,150.88,150.87,0.2845789]
[1726831614342,50.655564,150.88,150.87,0.2845789]
[1726831614643,50.781054,150.88,150.87,0.2845789]
[1726831615234,44.153354,150.88,150.87,0.2845789]
[1726831615437,50.781054,150.88,150.87,0.2845789]
[1726831620945,70.681054,150.88,150.87,0.2845789]
[1726831621320,70.681054,150.88,150.83,0.3625227]
[1726831621321,30.782854,150.84,150.83,0.3625227]
[1726831630065,50.782854,150.84,150.83,0.3625227]
[1726831630939,70.682854,150.84,150.83,0.3625227]
[1726831637740,70.682854,150.84,150.78,0.3284909]
[1726831637741,30.785054,150.79,150.78,0.3284909]
[1726831642047,7.00817,150.79,150.78,0.3284909]
[1726831642362,16.5745,150.84,150.78,15.7963909]
[1726831642746,6.0123,150.88,150.78,22.4282909]
[1726831642747,6.6306,150.82,150.78,22.4282909]
[1726831643356,6.6308,150.81,150.78,22.4282909]
[1726831644361,6.6308,150.81,150.78,15.7963909]
[1726831645956,0.12549,150.84,150.79,1.32636943]
[1726831646455,6.75529,150.84,150.8,6.631]
[1726831646648,6.63,150.83,150.79,6.6316]
[1726831647873,6.6304,150.82,150.78,15.8521789]
[1726831648581,6.6309,150.81,150.78,15.8521789]
[1726831648769,6.6304,150.82,150.78,22.4842789]
[1726831649277,6.6299,150.83,150.79,6.6316]
[1726831651262,6.6304,150.82,150.78,22.4841789]
[1726831651575,6.6304,150.82,150.79,6.6317]
[1726831655475,6.6304,150.82,150.78,22.4841789]
[1726831655865,6.6309,150.81,150.78,15.8521789]
[1726831656067,16.95057,150.84,150.78,15.8521789]
[1726831656368,6.6316,150.8,150.78,15.8521789]
[1726831656571,0.12549,150.82,150.78,15.8521789]
[1726831656774,6.6317,150.79,150.78,15.8521789]
[1726831657275,6.6314,150.8,150.78,15.8521789]
[1726831657980,6.75719,150.79,150.78,15.8521789]
[1726831658779,6.75719,150.79,150.78,0.3842789]
[1726831659164,7.00817,150.79,150.78,0.3842789]
[1726831659482,50.785054,150.79,150.78,0.3842789]
[1726831665576,0.12549,150.79,150.78,0.3842789]
[1726831667265,6.6309,150.81,150.78,0.3842789]
[1726831667692,6.6314,150.8,150.78,0.3842789]
[1726831667866,6.6317,150.79,150.78,0.3842789]
[1726831669489,6.6314,150.8,150.78,0.3842789]
[1726831669671,0.25098,150.82,150.78,0.3842789]
[1726831669869,6.6309,150.81,150.78,0.3842789]
[1726831670396,6.6313,150.8,150.78,0.3842789]
[1726831671997,6.6317,150.79,150.78,0.3842789]
[1726831672880,7.00817,150.79,150.78,0.3842789]
[1726831673078,30.785054,150.79,150.78,0.3842789]
[1726831674977,50.785054,150.79,150.78,0.3842789]
[1726831676409,7.00987,150.75,150.74,0.2552689]
[1726831676580,20.0,150.78,150.74,0.2552689]
[1726831676776,0.12549,150.76,150.74,0.2552689]
[1726831677095,0.37647,150.77,150.74,0.2552689]
[1726831677691,24.153354,150.77,150.74,0.2552689]
[1726831678398,6.75889,150.75,150.74,0.2552689]
[1726831678584,7.00987,150.75,150.74,0.2552689]
[1726831679118,6.75889,150.75,150.74,0.2552689]
[1726831680207,6.6334,150.75,150.74,0.2552689]
[1726831680501,24.153354,150.79,150.74,0.2552689]
[1726831680699,6.6326,150.77,150.74,0.2552689]
[1726831680900,6.6312,150.81,150.75,15.9253]
[1726831681094,21.82312449,150.85,150.75,22.5587]
[1726831681095,36.1023,150.85,150.75,22.5587]
[1726831681291,6.6317,150.79,150.75,15.9253]
[1726831681799,6.6322,150.78,150.75,15.9253]
[1726831682185,6.6318,150.79,150.75,15.9253]
[1726831682605,6.6325,150.78,150.75,15.9253]
[1726831682906,20.0,150.81,150.75,15.9253]
[1726831683598,6.6322,150.78,150.75,15.9253]
[1726831685506,24.153354,150.8,150.75,15.9253]
[1726831686007,6.6334,150.75,150.74,0.2552689]
[1726831686507,6.75889,150.75,150.74,0.2552689]
[1726831689302,6.6334,150.75,150.74,0.2552689]
[1726831690199,6.75889,150.75,150.74,0.2552689]
[1726831694107,7.00987,150.75,150.74,0.2552689]
[1726831694910,30.786754,150.75,150.74,0.2552689]
[1726831695981,50.786754,150.75,150.74,0.2552689]
[1726831698206,6.6334,150.75,150.74,0.2552689]
[1726831699812,7.00987,150.75,150.74,0.2552689]
[1726831702016,30.786754,150.75,150.74,0.2552689]
[1726831702518,50.786754,150.75,150.74,0.2552689]
[1726831703400,6.6357,150.7,150.69,0.4362384]
[1726831705488,0.37647,150.73,150.69,0.4362384]
[1726831705694,6.6357,150.7,150.69,0.4362384]
[1726831709019,6.76119,150.7,150.69,0.4362384]
[1726831709202,6.6357,150.7,150.69,0.4362384]
[1726831709401,20.0,150.74,150.69,0.4362384]
[1726831709625,20.0,150.74,150.69,16.7516384]
[1726831709928,6.6345,150.73,150.69,16.7516384]
[1726831710415,20.0,150.75,150.69,16.7516384]
[1726831710593,6.6355,150.71,150.69,16.7516384]
[1726831711010,6.6357,150.7,150.69,16.7516384]
[1726831712798,6.6357,150.7,150.69,0.4362384]
[1726831713302,6.76119,150.7,150.69,0.4362384]
[1726831714713,7.01387,150.66,150.65,0.2552689]
[1726831715215,50.790754,150.66,150.65,0.2552689]
[1726831717023,50.790754,150.66,150.6,0.4362384]
[1726831717024,6.6396,150.61,150.6,0.4362384]
[1726831717208,6.76509,150.61,150.6,0.4362384]
[1726831718120,16.5958,150.65,150.6,0.4362384]
[1726831718121,0.25098,150.64,150.6,0.4362384]
[1726831718336,7.01607,150.61,150.6,0.4362384]
[1726831720129,6.3457,150.68,150.6,0.4362384]
[1726831720130,16.5921,150.68,150.6,0.4362384]
[1726831720330,40.0683086,150.74,150.6,0.4362384]
[1726831720331,40.0683086,150.74,150.61,15.9754]
[1726831720628,6.6379,150.65,150.61,15.9754]
[1726831721326,16.5907,150.69,150.61,15.9754]
[1726831721530,6.6391,150.63,150.61,15.9754]
[1726831721709,6.6392,150.62,150.6,0.4362384]
[1726831722029,22.5633,150.69,150.6,0.4362384]
[1726831722030,24.153354,150.66,150.6,0.4362384]
[1726831722333,6.6388,150.63,150.6,0.4362384]
[1726831722641,6.6392,150.62,150.6,0.4362384]
[1726831725318,6.6396,150.61,150.6,0.4362384]
[1726831726433,6.6386,150.64,150.6,7.0762384]
[1726831726732,6.638,150.65,150.61,1.3277631]
[1726831726912,20.0,150.68,150.61,1.3277631]
[1726831727116,6.6382,150.65,150.6,7.0758384]
[1726831727323,20.0,150.68,150.6,7.0758384]
[1726831727518,6.6388,150.63,150.6,0.4362384]
[1726831728319,6.6393,150.62,150.6,0.4362384]
[1726831728518,6.6396,150.61,150.6,0.4362384]
[1726831729030,6.639,150.63,150.6,0.4362384]
[1726831729439,6.6393,150.62,150.6,0.4362384]
[1726831730720,6.6396,150.61,150.6,0.4362384]
[1726831732822,6.76509,150.61,150.6,0.4362384]
[1726831739748,7.01607,150.61,150.6,0.4362384]
[1726831743849,27.01607,150.61,150.6,0.4362384]
[1726831749827,50.792954,150.61,150.6,0.4362384]
[1726831750558,27.01607,150.61,150.6,0.4362384]
[1726831750934,6.6396,150.61,150.6,0.4362384]
[1726831752367,6.76509,150.61,150.6,0.4362384]
[1726831753057,6.89058,150.61,150.6,0.4362384]
[1726831753367,27.01607,150.61,150.6,0.4362384]
[1726831754245,50.792954,150.61,150.6,0.4362384]
[1726831755333,26.6396,150.61,150.6,0.4362384]
[1726831756637,26.76509,150.61,150.6,0.4362384]
[1726831757559,6.6389,150.63,150.6,15.6535384]
[1726831757733,6.639,150.63,150.6,15.6535384]
[1726831757943,6.6385,150.64,150.6,22.2935384]
[1726831758561,6.6385,150.64,150.61,1.32776481]
[1726831758948,16.591,150.69,150.61,7.96736481]
[1726831759139,6.6378,150.66,150.61,20.16507851]
[1726831759341,6.6379,150.65,150.61,20.16547851]
[1726831759537,6.6383,150.64,150.6,15.6535384]
[1726831760039,6.6383,150.64,150.6,22.2934384]
[1726831764165,6.6396,150.61,150.6,0.4362384]
[1726831765967,0.25098,150.68,150.6,15.7577384]
[1726831766149,6.6384,150.64,150.6,15.7577384]
[1726831766355,6.6388,150.63,150.6,15.7577384]
[1726831767545,6.6389,150.63,150.6,15.7577384]
[1726831768571,6.6392,150.62,150.6,15.7577384]
[1726831768774,6.6396,150.61,150.6,15.7577384]
[1726831769561,6.6393,150.62,150.6,15.7577384]
[1726831769779,6.6396,150.61,150.6,15.7577384]
[1726831770271,6.6396,150.61,150.6,0.4362384]
[1726831776990,27.01607,150.61,150.6,0.4362384]
[1726831777480,7.01607,150.61,150.6,0.4362384]
[1726831777870,27.01607,150.61,150.6,0.4362384]
[1726831780874,50.792954,150.61,150.6,0.4362384]
[1726831781984,50.792954,150.61,150.56,0.2552689]
[1726831781985,6.6414,150.57,150.56,0.2552689]
[1726831783464,6.641,150.58,150.56,0.2552689]
[1726831784076,6.6407,150.59,150.56,0.2552689]
[1726831784278,6.6507,150.64,150.56,16.8595689]
[1726831784507,16.5954,150.65,150.56,16.8595689]
[1726831784789,6.6403,150.6,150.56,23.5012689]
[1726831784965,6.6405,150.59,150.56,16.8595689]
[1726831785363,6.6411,150.58,150.56,0.2552689]
[1726831786077,6.6407,150.59,150.56,0.2552689]
[1726831787787,6.6402,150.6,150.56,8.225176]
[1726831788193,6.6402,150.6,150.56,6.8969689]
[1726831790181,6.6405,150.59,150.56,6.8969689]
[1726831791169,6.6405,150.59,150.56,0.2552689]
[1726831792179,6.6411,150.58,150.56,0.2552689]
[1726831793571,6.6414,150.57,150.56,0.2552689]
[1726831794402,6.6411,150.58,150.56,0.2552689]
[1726831795799,0.37647,150.62,150.56,0.2552689]
[1726831795800,6.6414,150.57,150.56,0.2552689]
[1726831796178,23.53048249,150.65,150.57,16.6031]
[1726831796473,6.6391,150.63,150.58,7.96854191]
[1726831796680,6.6393,150.62,150.58,7.96854191]
[1726831797176,6.6396,150.61,150.57,23.2444]
[1726831797377,6.6402,150.6,150.56,13.2494689]
[1726831797572,6.641,150.58,150.56,6.6077689]
[1726831797783,16.598,150.63,150.56,6.6077689]
[1726831798394,0.37647,150.62,150.56,6.6077689]
[1726831798574,6.6406,150.59,150.56,6.6077689]
[1726831798775,6.64,150.61,150.57,6.6413]
[1726831799675,6.64,150.61,150.56,13.2494689]
[1726831800778,6.6409,150.59,150.56,0.2552689]
[1726831800991,6.6411,150.58,150.56,0.2552689]
[1726831801981,6.6414,150.57,150.56,0.2552689]
[1726831804193,6.641,150.58,150.56,0.2552689]
[1726831805298,16.5964,150.64,150.56,0.2552689]
[1726831805503,16.5949,150.65,150.57,17.93118963]
[1726831806002,6.6402,150.6,150.56,6.8970689]
[1726831807000,6.6399,150.61,150.57,6.6414]
[1726831808300,6.6404,150.6,150.56,23.5014689]
[1726831809086,6.6396,150.62,150.57,6.6412]
[1726831809284,6.6398,150.61,150.57,6.6412]
[1726831809491,20.37647,150.64,150.56,23.5013689]
[1726831809492,6.6401,150.6,150.56,23.5013689]
[1726831809807,6.6386,150.64,150.6,6.64]
[1726831809988,6.6371,150.67,150.61,1.32777375]
[1726831810317,6.6379,150.65,150.62,16.5977]
[1726831810487,16.5914,150.68,150.59,16.4288]
[1726831811198,6.6383,150.65,150.6,6.64]
[1726831811396,16.5914,150.68,150.6,6.64]
[1726831811594,6.6384,150.64,150.6,6.64]
[1726831812095,6.6378,150.66,150.61,6.6395]
[1726831812298,0.2552689,150.71,150.64,6.6383]
[1726831812601,6.6367,150.68,150.65,16.4288]
[1726831812805,6.6369,150.68,150.65,16.4288]
[1726831813306,6.637,150.67,150.65,16.4288]
[1726831813485,6.6375,150.66,150.62,23.2367]
[1726831814508,6.6371,150.67,150.62,23.2367]
[1726831814809,6.6371,150.67,150.63,6.6387]
[1726831815208,6.6367,150.68,150.64,6.6383]
[1726831815411,20.2552689,150.71,150.64,16.5955]
[1726831815707,0.2552689,150.71,150.64,16.5955]
[1726831815917,0.2552689,150.71,150.64,22.6038]
[1726831816088,6.636,150.7,150.66,6.6373]
[1726831816704,6.8907689,150.71,150.67,6.637]
[1726831816907,6.8905689,150.71,150.66,23.2303]
[1726831817214,0.2552689,150.71,150.68,6.6364]
[1726831817710,0.2552689,150.71,150.69,6.636]
[1726831817910,0.2552689,150.71,150.68,23.2273]
[1726831818419,0.2552689,150.71,150.7,6.6357]
[1726831818788,0.2552689,150.71,150.69,6.636]
[1726831818986,0.2552689,150.71,150.68,16.5909]
[1726831819202,6.6358,150.7,150.65,22.4214]
[1726831819688,6.6358,150.7,150.66,6.6374]
[1726831819886,0.2552689,150.71,150.67,6.637]
[1726831820100,0.2552689,150.71,150.68,6.6362]
[1726831820412,0.2552689,150.71,150.67,16.5919]
[1726831820811,0.2552689,150.71,150.68,6.6364]
[1726831821209,0.2552689,150.71,150.67,16.5919]
[1726831821210,6.8905689,150.71,150.67,23.2287]
[1726831821901,0.2552689,150.71,150.67,23.2287]
[1726831822100,6.8905689,150.71,150.67,23.2287]
[1726831822714,0.2552689,150.71,150.67,16.5919]
[1726831822912,0.2552689,150.71,150.69,16.5896]
[1726831823214,0.2552689,150.71,150.69,23.2255]
[1726831827201,0.2552689,150.71,150.67,6.6366]
[1726831827711,6.8906689,150.71,150.67,6.6366]
[1726831828092,0.2552689,150.71,150.7,6.6357]
[1726831829813,0.2552689,150.71,150.69,23.225]
[1726831830207,0.2552689,150.71,150.7,6.6357]
[1726831831421,0.2552689,150.71,150.7,31.73947823]
[1726831831795,0.2552689,150.71,150.7,6.6357]
[1726831831997,0.2552689,150.76,150.75,6.6334]
[1726831832719,0.2552689,150.76,150.75,16.5837]
[1726831833018,0.2552689,150.76,150.75,46.993984]
[1726831833220,0.2552689,150.76,150.75,16.5837]
[1726831833411,0.2552689,150.76,150.72,16.5864]
[1726831833926,0.2552689,150.76,150.74,6.6338]
[1726831836322,0.2552689,150.76,150.75,6.6334]
[1726831837716,0.2552689,150.76,150.75,30.410284]
[1726831838524,0.2552689,150.76,150.75,6.6334]
[1726831838828,0.2552689,150.76,150.74,16.5842]
[1726831839123,6.8883689,150.76,150.72,6.6347]
[1726831839326,6.8883689,150.76,150.71,23.2225]
[1726831839641,0.2552689,150.76,150.72,6.6347]
[1726831839800,0.2552689,150.76,150.71,16.5874]
[1726831840004,0.2552689,150.76,150.7,22.737]
[1726831840005,0.2552689,150.76,150.74,6.6337]
[1726831845339,0.2552689,150.76,150.75,7.95987783]
[1726831846421,0.2552689,150.76,150.75,31.73676183]
[1726831847313,0.2552689,150.76,150.75,30.410284]
[1726831847738,0.2552689,150.76,150.74,6.6338]
[1726831849925,6.3878689,150.77,150.73,23.2197]
[1726831850447,0.25098,150.79,150.7,16.5158]
[1726831850741,16.83048,150.79,150.7,33.1043]